[Event "Asian Amateur-ch Women 2022"]
[Site "Muscat"]
[Date "2022.10.02"]
[Round "1.1"]
[White "Rouda Essa, Alserkal"]
[Black "Neamah Ali Awadh BaJamel"]
[Result "1-0"]
[ECO "B34"]
[WhiteElo "1893"]
[BlackElo "1269"]
[Annotator "NA RC COMBH"]
[PlyCount "83"]
[EventDate "2022.09.29"]
[EventType "swiss"]
[SourceTitle "playchess.com"]
[Source "ChessBase"]
[SourceQuality "1"]
[TimeControl "5400+30"]

1. e4 {[%emt 0:00:02]} c5 {[%emt 1:31:00]} 2. Nf3 {[%emt 1:31:28]} Nc6 {[%emt 0:00:00]} 3. d4 {[%emt 0:00:00]} cxd4 {[%emt 0:01:00]} 4. Nxd4 {[%emt 0:01:00]} d6 {[%emt 0:00:30]} 5. Nc3 {[%emt 0:00:30]} g6 {[%emt 0:00:00]} 6. Be3 {[%emt 0:00:00]} Bg7 {[%emt 0:00:00]} 7. Qd2 {[%emt 0:00:00]} Qa5 {[%emt 0:00:00]} 8. O-O-O {[%emt 0:00:00]} Bd7 {[%emt 0:00:00]} 9. Kb1 {[%emt 0:00:00]} Nxd4 {[%emt 0:00:00]} 10. Bxd4 {[%emt 0:00:00]} Nf6 {[%emt 0:00:00]} 11. f3 {[%emt 0:00:00]} O-O {[%emt 0:00:00]} 12. Nd5 {[%emt 0:00:00]} Qxd2 {[%emt 0:04:00]} 13. Nxe7+ {[%emt 0:04:00]} Kh8 {[%emt 0:00:30]} 14. Rxd2 {[%emt 0:00:30]} Be6 {[%emt 0:00:00]} 15. Nd5 {[%emt 0:00:00]} Nxd5 {[%emt 0:00:00]} 16. exd5 {[%emt 0:00:00]} Bd7 {[%emt 0:00:00]} 17. Bf2 {[%emt 0:00:00]} Rfc8 {[%emt 0:00:00]} 18. Bd3 {[%emt 0:00:00]} a6 {[%emt 0:00:00]} 19. Bb6 {[%emt 0:00:00]} Re8 {[%emt 0:00:00]} 20. c4 {[%emt 0:00:00]} Bf8 {[%emt 0:00:00]} 21. g4 {[%emt 0:00:00]} Bh6 {[%emt 0:00:00]} 22. Rc2 {[%emt 0:00:00]} Rac8 {[%emt 0:00:00]} 23. b4 {[%emt 0:00:00]} Ba4 {[%emt 0:00:00]} 24. Re2 {[%emt 0:00:00]} Rxe2 {[%emt 0:00:00]} 25. Bxe2 {[%emt 0:00:00]} Bd2 {[%emt 0:00:00]} 26. a3 {[%emt 0:00:00]} Bb3 {[%emt 0:00:00]} 27. c5 {[%emt 0:00:00]} dxc5 {[%emt 0:00:00]} 28. bxc5 {[%emt 0:00:00]} Be3 {[%emt 0:00:00]} 29. d6 {[%emt 0:00:00]} Be6 {[%emt 0:00:00]} 30. Rd1 {[%emt 0:00:00]} Bd7 {[%emt 0:00:00]} 31. Rd5 {[%emt 0:00:00]} Kg8 {[%emt 0:00:00]} 32. Re5 {[%emt 0:00:00]} Re8 {[%emt 0:00:00]} 33. Rxe8+ {[%emt 0:00:00]} Bxe8 {[%emt 0:00:00]} 34. Bd3 {[%emt 0:00:00]} Kf8 {[%emt 0:00:00]} 35. Be4 {[%emt 0:00:00]} Bb5 {[%emt 0:00:00]} 36. Bxb7 {[%emt 0:00:00]} Ke8 {[%emt 0:00:00]} 37. Kc2 {[%emt 0:00:00]} Bd4 {[%emt 0:00:00]} 38. Kb3 {[%emt 0:00:41]} Kd7 {[%emt 0:00:00]} 39. a4 {[%emt 0:00:51]} Be2 {[%emt 0:00:00]} 40. c6+ {[%emt 0:00:03]} Kxd6 {[%emt 0:00:00]} 41. c7 {[%emt 0:00:22]} Bxb6 {[%emt 0:00:00]} 42. c8=Q {[%emt 0:00:10]} 1-0

[Event "Asian Amateur-ch Women 2022"]
[Site "Muscat"]
[Date "2022.10.02"]
[Round "1.2"]
[White "Al Balushi, Afra"]
[Black "Sawan, Eman"]
[Result "0-1"]
[ECO "B50"]
[WhiteElo "1263"]
[BlackElo "1840"]
[Annotator "NA RC COMBH"]
[PlyCount "62"]
[EventDate "2022.09.29"]
[EventType "swiss"]
[SourceTitle "playchess.com"]
[Source "ChessBase"]
[SourceQuality "1"]
[TimeControl "5400+30"]

1. e4 {[%emt 0:00:02]} c5 {[%emt 0:00:05]} 2. Nf3 {[%emt 0:00:21]} d6 {[%emt 0:00:08]} 3. Bc4 {[%emt 0:01:28]} Nf6 {[%emt 0:00:23]} 4. d3 {[%emt 0:01:04]} e6 {[%emt 0:00:47]} 5. Bg5 {[%emt 0:01:13]} Be7 {[%emt 0:00:40]} 6. O-O {[%emt 0:00:31]} a6 {[%emt 0:01:37]} 7. a3 {[%emt 0:01:27]} b5 {[%emt 0:01:48]} 8. Ba2 {[%emt 0:01:24]} Bb7 {[%emt 0:02:41]} 9. Nbd2 {[%emt 0:02:17]} O-O {[%emt 0:01:27]} 10. c4 {[%emt 0:01:06]} Nc6 {[%emt 0:04:34]} 11. Qc2 {[%emt 0:07:03]} h6 {[%emt 0:04:27]} 12. Bh4 {[%emt 0:04:41]} Nh5 {[%emt 0:15:43]} 13. Bg3 {[%emt 0:04:33]} Nxg3 {[%emt 0:00:35]} 14. hxg3 {[%emt 0:01:14]} Bf6 {[%emt 0:03:49]} 15. Rab1 {[%emt 0:02:19]} b4 {[%emt 0:02:00]} 16. a4 {[%emt 0:01:44]} Qc7 {[%emt 0:11:59]} 17. b3 {[%emt 0:01:35]} Rfd8 {[%emt 0:06:25]} 18. Rfe1 {[%emt 0:09:43]} Nd4 {[%emt 0:02:56]} 19. Nxd4 {[%emt 0:04:23]} Bxd4 {[%emt 0:00:05]} 20. Nf3 {[%emt 0:01:25]} Bc3 {[%emt 0:00:23]} 21. Re2 {[%emt 0:02:35]} d5 {[%emt 0:01:05]} 22. e5 {[%emt 0:03:58]} dxc4 {[%emt 0:00:42]} 23. dxc4 {[%emt 0:04:56]} Bxf3 {[%emt 0:00:49]} 24. gxf3 {[%emt 0:00:21]} Bxe5 {[%emt 0:00:54]} 25. Rd1 {[%emt 0:02:53]} Bd4 {[%emt 0:03:43]} 26. Bb1 {[%emt 0:01:22]} Qxg3+ {[%emt 0:00:19]} 27. Kf1 {[%emt 0:02:12]} Qh3+ {[%emt 0:05:16]} 28. Kg1 {[%emt 0:01:07]} g6 {[%emt 0:07:04]} 29. Rd3 {[%emt 0:03:41]} Qg3+ {[%emt 0:00:43]} 30. Kf1 {[%emt 0:00:32]} Qh2 {[%emt 0:00:18]} 31. Ke1 {[%emt 0:01:37]} Bc3+ {[%emt 0:00:38]} 0-1

[Event "Asian Amateur-ch Women 2022"]
[Site "Muscat"]
[Date "2022.10.02"]
[Round "1.3"]
[White "Al-Khelaifi, Salama"]
[Black "alyazia Humaid alhasani"]
[Result "1/2-1/2"]
[ECO "C13"]
[WhiteElo "1798"]
[BlackElo "1203"]
[Annotator "NA RC COMBH"]
[PlyCount "88"]
[EventDate "2022.09.29"]
[EventType "swiss"]
[SourceTitle "playchess.com"]
[Source "ChessBase"]
[SourceQuality "1"]
[TimeControl "5400+30"]

1. d4 {[%emt 0:00:04]} d5 {[%emt 0:00:25]} 2. Nc3 {[%emt 0:00:07]} Nf6 {[%emt 0:00:29]} 3. Bg5 {[%emt 0:00:10]} e6 {[%emt 0:00:27]} 4. e4 {[%emt 0:00:15]} dxe4 {[%emt 0:01:19]} 5. Nxe4 {[%emt 0:00:07]} Be7 {[%emt 0:00:14]} 6. Bxf6 {[%emt 0:00:17]} Bxf6 {[%emt 0:00:22]} 7. Nf3 {[%emt 0:00:15]} Nd7 {[%emt 0:02:42]} 8. Bd3 {[%emt 0:01:54]} c5 {[%emt 0:02:42]} 9. c3 {[%emt 0:13:41]} cxd4 {[%emt 0:04:47]} 10. Nxd4 {[%emt 0:02:22]} Bxd4 {[%emt 0:02:17]} 11. cxd4 {[%emt 0:00:35]} Qb6 {[%emt 0:02:18]} 12. Qe2 {[%emt 0:04:50]} Qxd4 {[%emt 0:04:28]} 13. O-O {[%emt 0:03:31]} O-O {[%emt 0:03:53]} 14. Rfd1 {[%emt 0:00:37]} Qe5 {[%emt 0:04:25]} 15. Rac1 {[%emt 0:01:35]} a6 {[%emt 0:15:41]} 16. b3 {[%emt 0:04:45]} b5 {[%emt 0:01:23]} 17. Nd6 {[%emt 0:23:03]} Qxe2 {[%emt 0:03:57]} 18. Bxe2 {[%emt 0:00:10]} Nf6 {[%emt 0:00:21]} 19. Bf3 {[%emt 0:00:26]} Rb8 {[%emt 0:01:06]} 20. Nxc8 {[%emt 0:01:21]} Rfxc8 {[%emt 0:04:19]} 21. Rxc8+ {[%emt 0:01:52]} Rxc8 {[%emt 0:00:08]} 22. Bb7 {[%emt 0:00:03]} Rb8 {[%emt 0:00:30]} 23. Bxa6 {[%emt 0:00:08]} Nd5 {[%emt 0:00:43]} 24. Rc1 {[%emt 0:02:26]} g6 {[%emt 0:04:37]} 25. Rc8+ {[%emt 0:00:52]} Rxc8 {[%emt 0:00:16]} 26. Bxc8 {[%emt 0:00:01]} b4 {[%emt 0:00:23]} 27. Kf1 {[%emt 0:00:43]} Nc3 {[%emt 0:03:23]} 28. Ke1 {[%emt 0:00:11]} Nxa2 {[%emt 0:03:18]} 29. Kd2 {[%emt 0:00:24]} Kg7 {[%emt 0:00:07]} 30. Kd3 {[%emt 0:01:41]} Kf6 {[%emt 0:02:26]} 31. Kc4 {[%emt 0:02:24]} Ke5 {[%emt 0:00:13]} 32. Bb7 {[%emt 0:00:08]} f5 {[%emt 0:00:53]} 33. Bf3 {[%emt 0:00:46]} Nc1 {[%emt 0:04:17]} 34. Kxb4 {[%emt 0:00:19]} Nd3+ {[%emt 0:00:07]} 35. Kc4 {[%emt 0:00:50]} Nxf2 {[%emt 0:00:25]} 36. b4 {[%emt 0:00:52]} Kd6 {[%emt 0:00:15]} 37. b5 {[%emt 0:00:36]} e5 {[%emt 0:02:50]} 38. h3 {[%emt 0:01:09]} e4 {[%emt 0:00:21]} 39. Be2 {[%emt 0:00:09]} Nh1 {[%emt 0:02:32]} 40. Kd4 {[%emt 0:00:13]} Ng3 {[%emt 0:00:41]} 41. Bc4 {[%emt 0:00:38]} f4 {[%emt 0:00:59]} 42. b6 {[%emt 0:00:55]} Kc6 {[%emt 0:00:16]} 43. Bd5+ {[%emt 0:00:10]} Kxb6 {[%emt 0:00:48]} 44. Bxe4 {[%emt 0:00:02]} Nxe4 {[%emt 0:24:27]} 1/2-1/2

[Event "Asian Amateur-ch Women 2022"]
[Site "Muscat"]
[Date "2022.10.02"]
[Round "1.4"]
[White "Aditi Arun"]
[Black "Nadernia, Niki"]
[Result "0-1"]
[ECO "A46"]
[WhiteElo "1160"]
[BlackElo "1769"]
[Annotator "NA RC COMBH"]
[PlyCount "83"]
[EventDate "2022.09.29"]
[EventType "swiss"]
[SourceTitle "playchess.com"]
[Source "ChessBase"]
[SourceQuality "1"]
[TimeControl "5400+30"]

1. d4 {[%emt 0:00:03]} e6 {[%emt 0:00:14]} 2. Bf4 {[%emt 0:00:12]} Nf6 {[%emt 0:00:09]} 3. e3 {[%emt 0:00:55]} c5 {[%emt 0:00:33]} 4. c3 {[%emt 0:04:04]} Nc6 {[%emt 0:01:18]} 5. Nf3 {[%emt 0:01:45]} Be7 {[%emt 0:02:14]} 6. Bd3 {[%emt 0:02:15]} O-O {[%emt 0:02:49]} 7. O-O {[%emt 0:01:21]} d6 {[%emt 0:04:48]} 8. Qc2 {[%emt 0:03:37]} b6 {[%emt 0:02:39]} 9. e4 {[%emt 0:05:18]} cxd4 {[%emt 0:01:04]} 10. Nxd4 {[%emt 0:02:44]} Bb7 {[%emt 0:02:11]} 11. Nxc6 {[%emt 0:05:51]} Bxc6 {[%emt 0:00:06]} 12. Nd2 {[%emt 0:04:29]} e5 {[%emt 0:02:40]} 13. Bg3 {[%emt 0:00:21]} Nh5 {[%emt 0:01:04]} 14. Rad1 {[%emt 0:03:26]} b5 {[%emt 0:12:32]} 15. Rfe1 {[%emt 0:09:06]} g6 {[%emt 0:05:56]} 16. c4 {[%emt 0:05:12]} b4 {[%emt 0:05:51]} 17. Nf3 {[%emt 0:10:13]} Rc8 {[%emt 0:08:43]} 18. Qe2 {[%emt 0:14:01]} Qa5 {[%emt 0:02:55]} 19. b3 {[%emt 0:00:45]} Ng7 {[%emt 0:00:19]} 20. c5 {[%emt 0:08:37]} Qxc5 {[%emt 0:02:23]} 21. Rc1 {[%emt 0:00:07]} Qb6 {[%emt 0:00:32]} 22. Nd2 {[%emt 0:02:08]} Ne6 {[%emt 0:03:13]} 23. Nc4 {[%emt 0:00:08]} Qd8 {[%emt 0:00:12]} 24. f3 {[%emt 0:01:36]} Nd4 {[%emt 0:02:16]} 25. Qd2 {[%emt 0:00:24]} a5 {[%emt 0:03:28]} 26. Bf2 {[%emt 0:01:02]} Bg5 {[%emt 0:00:08]} 27. Be3 {[%emt 0:00:59]} Bxe3+ {[%emt 0:00:23]} 28. Qxe3 {[%emt 0:00:06]} a4 {[%emt 0:05:16]} 29. Bc2 {[%emt 0:01:53]} Bb5 {[%emt 0:01:34]} 30. Qd2 {[%emt 0:01:21]} Bxc4 {[%emt 0:01:27]} 31. bxc4 {[%emt 0:00:13]} Qb6 {[%emt 0:01:27]} 32. Kh1 {[%emt 0:00:30]} b3 {[%emt 0:00:33]} 33. axb3 {[%emt 0:00:30]} axb3 {[%emt 0:00:06]} 34. Bd3 {[%emt 0:00:54]} Ra8 {[%emt 0:01:04]} 35. Rb1 {[%emt 0:00:45]} Qc5 {[%emt 0:01:01]} 36. Rb2 {[%emt 0:00:36]} Ra3 {[%emt 0:00:49]} 37. Reb1 {[%emt 0:00:53]} Rfa8 {[%emt 0:02:28]} 38. h3 {[%emt 0:00:10]} Ra1 {[%emt 0:01:44]} 39. Kh2 {[%emt 0:00:29]} Rxb1 {[%emt 0:00:23]} 40. Rxb1 {[%emt 0:00:14]} Ra2 {[%emt 0:00:06]} 41. Rb2 {[%emt 0:01:06]} Qa3 {[%emt 0:00:21]} 42. f4 {[%emt 0:11:11]} 0-1

[Event "Asian Amateur-ch Women 2022"]
[Site "Muscat"]
[Date "2022.10.02"]
[Round "1.5"]
[White "Al-Khelaifi, Aisha"]
[Black "Dakshikaa S M"]
[Result "1-0"]
[ECO "C54"]
[WhiteElo "1678"]
[BlackElo "1117"]
[Annotator "NA RC COMBH"]
[PlyCount "127"]
[EventDate "2022.09.29"]
[EventType "swiss"]
[SourceTitle "playchess.com"]
[Source "ChessBase"]
[SourceQuality "1"]
[TimeControl "5400+30"]

1. e4 {[%emt 0:00:06]} e5 {[%emt 0:00:03]} 2. Nf3 {[%emt 0:00:05]} Nc6 {[%emt 0:00:11]} 3. Bc4 {[%emt 0:00:22]} Bc5 {[%emt 0:00:11]} 4. d3 {[%emt 0:00:41]} Nf6 {[%emt 0:00:45]} 5. c3 {[%emt 0:01:59]} d6 {[%emt 0:03:12]} 6. h3 {[%emt 0:01:35]} O-O {[%emt 0:01:10]} 7. Bg5 {[%emt 0:01:31]} Be6 {[%emt 0:02:38]} 8. Bb3 {[%emt 0:00:43]} Qe7 {[%emt 0:02:54]} 9. d4 {[%emt 0:03:21]} exd4 {[%emt 0:00:33]} 10. O-O {[%emt 0:07:26]} Bxb3 {[%emt 0:05:58]} 11. Qxb3 {[%emt 0:01:04]} Bb6 {[%emt 0:09:56]} 12. cxd4 {[%emt 0:05:03]} Nxd4 {[%emt 0:01:19]} 13. Nxd4 {[%emt 0:01:30]} Bxd4 {[%emt 0:00:04]} 14. Nc3 {[%emt 0:00:45]} c6 {[%emt 0:05:58]} 15. Rad1 {[%emt 0:03:39]} Bb6 {[%emt 0:01:04]} 16. Na4 {[%emt 0:03:58]} Qc7 {[%emt 0:10:26]} 17. Bxf6 {[%emt 0:05:21]} gxf6 {[%emt 0:00:04]} 18. Qg3+ {[%emt 0:01:39]} Kh8 {[%emt 0:00:07]} 19. Qxd6 {[%emt 0:03:59]} Qxd6 {[%emt 0:00:12]} 20. Rxd6 {[%emt 0:00:09]} Kg7 {[%emt 0:01:55]} 21. Nxb6 {[%emt 0:00:54]} axb6 {[%emt 0:00:05]} 22. a3 {[%emt 0:00:25]} Rfe8 {[%emt 0:01:28]} 23. f3 {[%emt 0:00:54]} Rad8 {[%emt 0:03:20]} 24. Rfd1 {[%emt 0:00:39]} Rxd6 {[%emt 0:00:09]} 25. Rxd6 {[%emt 0:00:06]} Re7 {[%emt 0:00:47]} 26. Kf2 {[%emt 0:00:15]} Kg6 {[%emt 0:02:11]} 27. Kg3 {[%emt 0:02:38]} b5 {[%emt 0:03:40]} 28. Kf4 {[%emt 0:04:05]} Re6 {[%emt 0:01:08]} 29. Rd7 {[%emt 0:02:25]} b6 {[%emt 0:00:23]} 30. g4 {[%emt 0:00:19]} c5 {[%emt 0:02:47]} 31. h4 {[%emt 0:01:35]} b4 {[%emt 0:03:27]} 32. axb4 {[%emt 0:00:51]} cxb4 {[%emt 0:00:04]} 33. Rd4 {[%emt 0:00:13]} h5 {[%emt 0:07:48]} 34. Rxb4 {[%emt 0:00:46]} Rc6 {[%emt 0:05:48]} 35. Rb5 {[%emt 0:01:10]} hxg4 {[%emt 0:01:45]} 36. Kxg4 {[%emt 0:00:52]} Kh6 {[%emt 0:02:39]} 37. Rd5 {[%emt 0:02:44]} Kg6 {[%emt 0:02:01]} 38. h5+ {[%emt 0:05:14]} Kh6 {[%emt 0:00:26]} 39. Rd7 {[%emt 0:01:42]} Kg7 {[%emt 0:01:29]} 40. Kf5 {[%emt 0:01:50]} Rc5+ {[%emt 0:01:39]} 41. Rd5 {[%emt 0:00:14]} Rc6 {[%emt 0:00:29]} 42. b4 {[%emt 0:02:56]} Kh6 {[%emt 0:01:24]} 43. Rd7 {[%emt 0:00:40]} Kg7 {[%emt 0:00:31]} 44. h6+ {[%emt 0:00:24]} Kxh6 {[%emt 0:02:14]} 45. Rxf7 {[%emt 0:00:06]} Rd6 {[%emt 0:00:28]} 46. Rxf6+ {[%emt 0:00:10]} Rxf6+ {[%emt 0:00:17]} 47. Kxf6 {[%emt 0:00:03]} Kh7 {[%emt 0:00:32]} 48. Kf7 {[%emt 0:00:05]} Kh6 {[%emt 0:00:29]} 49. e5 {[%emt 0:00:03]} Kg5 {[%emt 0:00:30]} 50. e6 {[%emt 0:00:04]} Kf4 {[%emt 0:00:17]} 51. e7 {[%emt 0:00:03]} Kxf3 {[%emt 0:00:19]} 52. e8=Q {[%emt 0:00:09]} Kf4 {[%emt 0:00:28]} 53. Qb5 {[%emt 0:00:06]} Ke4 {[%emt 0:00:29]} 54. Qxb6 {[%emt 0:00:08]} Kd5 {[%emt 0:00:21]} 55. Qc7 {[%emt 0:00:13]} Kd4 {[%emt 0:00:15]} 56. b5 {[%emt 0:00:03]} Kd5 {[%emt 0:00:18]} 57. b6 {[%emt 0:00:07]} Kd4 {[%emt 0:00:21]} 58. b7 {[%emt 0:00:03]} Kd5 {[%emt 0:00:23]} 59. b8=Q {[%emt 0:00:07]} Kd4 {[%emt 0:00:25]} 60. Qb5 {[%emt 0:00:14]} Ke4 {[%emt 0:00:26]} 61. Qcc4+ {[%emt 0:00:03]} Ke3 {[%emt 0:01:05]} 62. Qbb3+ {[%emt 0:00:11]} Kd2 {[%emt 0:00:21]} 63. Qcc2+ {[%emt 0:00:10]} Ke1 {[%emt 0:00:21]} 64. Qbb1# {[%emt 0:00:02]} 1-0

[Event "Asian Amateur-ch Women 2022"]
[Site "Muscat"]
[Date "2022.10.02"]
[Round "1.6"]
[White "Mouza Nasser AlShamsi"]
[Black "Al Aisaee, Anat"]
[Result "1-0"]
[ECO "B28"]
[WhiteElo "1117"]
[BlackElo "1628"]
[Annotator "NA RC COMBH"]
[PlyCount "65"]
[EventDate "2022.09.29"]
[EventType "swiss"]
[SourceTitle "playchess.com"]
[Source "ChessBase"]
[SourceQuality "1"]
[TimeControl "5400+30"]

1. e4 {[%emt 0:00:07]} c5 {[%emt 0:00:08]} 2. Nf3 {[%emt 0:00:14]} a6 {[%emt 0:00:18]} 3. c3 {[%emt 0:00:25]} d5 {[%emt 0:00:24]} 4. exd5 {[%emt 0:00:50]} Qxd5 {[%emt 0:00:40]} 5. d4 {[%emt 0:00:48]} e6 {[%emt 0:01:10]} 6. Be3 {[%emt 0:02:08]} cxd4 {[%emt 0:01:54]} 7. Qxd4 {[%emt 0:01:49]} Nf6 {[%emt 0:03:44]} 8. Be2 {[%emt 0:07:14]} Nc6 {[%emt 0:02:17]} 9. Qxd5 {[%emt 0:01:31]} Nxd5 {[%emt 0:00:12]} 10. Nd4 {[%emt 0:07:33]} Nxe3 {[%emt 0:03:22]} 11. fxe3 {[%emt 0:00:08]} Bc5 {[%emt 0:01:06]} 12. Nxc6 {[%emt 0:01:59]} bxc6 {[%emt 0:00:10]} 13. e4 {[%emt 0:00:36]} Rb8 {[%emt 0:04:04]} 14. b4 {[%emt 0:00:34]} Be3 {[%emt 0:03:45]} 15. Nd2 {[%emt 0:02:08]} O-O {[%emt 0:07:27]} 16. Nc4 {[%emt 0:01:50]} Bf4 {[%emt 0:00:14]} 17. O-O {[%emt 0:01:12]} Bc7 {[%emt 0:00:47]} 18. Rad1 {[%emt 0:02:38]} Bb7 {[%emt 0:09:31]} 19. Rd7 {[%emt 0:01:24]} Rfc8 {[%emt 0:05:02]} 20. Rfxf7 {[%emt 0:00:59]} c5 {[%emt 0:14:36]} 21. Rxg7+ {[%emt 0:01:08]} Kh8 {[%emt 0:03:19]} 22. Rxc7 {[%emt 0:01:52]} Rxc7 {[%emt 0:00:53]} 23. Rxc7 {[%emt 0:00:08]} Bxe4 {[%emt 0:02:56]} 24. Rxc5 {[%emt 0:00:53]} Kg7 {[%emt 0:03:54]} 25. Nd6 {[%emt 0:02:30]} Bg6 {[%emt 0:00:06]} 26. a4 {[%emt 0:05:09]} Bc2 {[%emt 0:03:25]} 27. a5 {[%emt 0:00:22]} Kf6 {[%emt 0:01:55]} 28. Rc8 {[%emt 0:00:16]} Rxc8 {[%emt 0:01:18]} 29. Nxc8 {[%emt 0:00:05]} Ke5 {[%emt 0:01:43]} 30. Bxa6 {[%emt 0:00:15]} Kd5 {[%emt 0:02:29]} 31. Bb7+ {[%emt 0:00:19]} Kc4 {[%emt 0:00:28]} 32. a6 {[%emt 0:00:11]} Kxc3 {[%emt 0:08:27]} 33. a7 {[%emt 0:00:17]} 1-0

[Event "Asian Amateur-ch Women 2022"]
[Site "Muscat"]
[Date "2022.10.02"]
[Round "1.8"]
[White "Suchitraa Viswanathan"]
[Black "Al Mansouri, Moza"]
[Result "0-1"]
[ECO "B52"]
[WhiteElo "1041"]
[BlackElo "1610"]
[Annotator "NA RC COMBH"]
[PlyCount "76"]
[EventDate "2022.09.29"]
[EventType "swiss"]
[SourceTitle "playchess.com"]
[Source "ChessBase"]
[SourceQuality "1"]
[TimeControl "5400+30"]

1. e4 {[%emt 0:00:04]} c5 {[%emt 0:00:09]} 2. Nf3 {[%emt 0:00:23]} d6 {[%emt 0:00:04]} 3. Bb5+ {[%emt 0:00:23]} Bd7 {[%emt 0:00:16]} 4. Bxd7+ {[%emt 0:00:45]} Qxd7 {[%emt 0:00:06]} 5. c3 {[%emt 0:01:08]} Nf6 {[%emt 0:00:35]} 6. d3 {[%emt 0:01:05]} Nc6 {[%emt 0:00:35]} 7. Be3 {[%emt 0:01:39]} e6 {[%emt 0:00:44]} 8. h3 {[%emt 0:02:27]} Be7 {[%emt 0:00:18]} 9. Nbd2 {[%emt 0:00:57]} O-O {[%emt 0:00:32]} 10. O-O {[%emt 0:00:57]} b5 {[%emt 0:03:30]} 11. Nh2 {[%emt 0:02:52]} d5 {[%emt 0:01:29]} 12. f4 {[%emt 0:01:30]} d4 {[%emt 0:00:39]} 13. cxd4 {[%emt 0:02:24]} Nxd4 {[%emt 0:00:50]} 14. Nb3 {[%emt 0:01:43]} Nxb3 {[%emt 0:00:31]} 15. axb3 {[%emt 0:01:00]} Rfd8 {[%emt 0:00:22]} 16. e5 {[%emt 0:01:04]} Ne8 {[%emt 0:03:29]} 17. Rf3 {[%emt 0:05:54]} Qxd3 {[%emt 0:00:27]} 18. Qc1 {[%emt 0:00:36]} Qd5 {[%emt 0:01:28]} 19. Rg3 {[%emt 0:02:19]} Rd7 {[%emt 0:01:36]} 20. Qc2 {[%emt 0:03:00]} Rad8 {[%emt 0:01:14]} 21. Rf3 {[%emt 0:01:15]} Qd3 {[%emt 0:00:40]} 22. Qxd3 {[%emt 0:00:23]} Rxd3 {[%emt 0:00:04]} 23. Rxa7 {[%emt 0:00:30]} Bf8 {[%emt 0:01:00]} 24. Rg3 {[%emt 0:02:05]} Rxb3 {[%emt 0:00:23]} 25. Ng4 {[%emt 0:00:12]} g6 {[%emt 0:01:14]} 26. Ra2 {[%emt 0:02:11]} h5 {[%emt 0:01:31]} 27. Nf2 {[%emt 0:01:03]} Ng7 {[%emt 0:00:21]} 28. Rf3 {[%emt 0:01:27]} Nf5 {[%emt 0:00:58]} 29. Ra3 {[%emt 0:00:43]} Rxb2 {[%emt 0:00:49]} 30. Bc1 {[%emt 0:00:19]} Rb1 {[%emt 0:00:19]} 31. Rac3 {[%emt 0:00:16]} b4 {[%emt 0:01:10]} 32. Rc4 {[%emt 0:00:34]} b3 {[%emt 0:00:39]} 33. Kh2 {[%emt 0:00:30]} b2 {[%emt 0:00:30]} 34. Be3 {[%emt 0:00:36]} Nxe3 {[%emt 0:01:04]} 35. Rxe3 {[%emt 0:00:10]} Rf1 {[%emt 0:01:03]} 36. Ne4 {[%emt 0:00:21]} b1=Q {[%emt 0:00:31]} 37. Nf6+ {[%emt 0:00:14]} Kg7 {[%emt 0:00:33]} 38. Rg3 {[%emt 0:00:14]} Rh1# {[%emt 0:00:05]} 0-1

[Event "Asian Amateur-ch Women 2022"]
[Site "Muscat"]
[Date "2022.10.02"]
[Round "1.9"]
[White "Fatima, Saif Al-Ali"]
[Black "Alshammari, Dalal"]
[Result "1-0"]
[ECO "C65"]
[WhiteElo "1595"]
[BlackElo "1028"]
[Annotator "NA RC COMBH"]
[PlyCount "45"]
[EventDate "2022.09.29"]
[EventType "swiss"]
[SourceTitle "playchess.com"]
[Source "ChessBase"]
[SourceQuality "1"]
[TimeControl "5400+30"]

1. e4 {[%emt 0:00:09]} e5 {[%emt 0:00:15]} 2. Nf3 {[%emt 0:00:15]} Nc6 {[%emt 0:00:13]} 3. Bb5 {[%emt 0:00:26]} Nf6 {[%emt 0:00:28]} 4. d3 {[%emt 0:00:23]} Bc5 {[%emt 0:01:16]} 5. c3 {[%emt 0:00:40]} a6 {[%emt 0:00:37]} 6. Bxc6 {[%emt 0:01:39]} dxc6 {[%emt 1:30:41]} 7. Nxe5 {[%emt 1:30:28]} Qe7 {[%emt 0:00:00]} 8. Nc4 {[%emt 0:00:00]} O-O {[%emt 0:00:00]} 9. O-O {[%emt 0:00:00]} Rd8 {[%emt 0:00:00]} 10. Qc2 {[%emt 0:00:00]} b6 {[%emt 0:00:00]} 11. d4 {[%emt 0:00:00]} b5 {[%emt 0:00:00]} 12. Na5 {[%emt 0:00:00]} Qd7 {[%emt 0:00:00]} 13. dxc5 {[%emt 0:00:00]} Rb8 {[%emt 0:00:00]} 14. Bg5 {[%emt 0:00:00]} Qe6 {[%emt 0:00:00]} 15. Re1 {[%emt 0:00:00]} h6 {[%emt 0:00:00]} 16. Bf4 {[%emt 0:00:00]} Rd7 {[%emt 0:00:00]} 17. Nd2 {[%emt 0:00:00]} g5 {[%emt 0:00:00]} 18. Bg3 {[%emt 0:00:00]} Nh5 {[%emt 0:00:00]} 19. Nf3 {[%emt 0:00:00]} Nxg3 {[%emt 0:00:00]} 20. hxg3 {[%emt 0:00:00]} g4 {[%emt 0:00:00]} 21. Nd4 {[%emt 0:00:00]} Qg6 {[%emt 0:00:00]} 22. Naxc6 {[%emt 0:00:00]} Ra8 {[%emt 0:00:00]} 23. Ne5 {[%emt 0:00:00]} 1-0

[Event "Asian Amateur-ch Women 2022"]
[Site "Muscat"]
[Date "2022.10.02"]
[Round "2.1"]
[White "Algubaishi, Afnan Hassan"]
[Black "Rouda Essa, Alserkal"]
[Result "0-1"]
[ECO "C92"]
[WhiteElo "1450"]
[BlackElo "1893"]
[Annotator "NA RC COMBH"]
[PlyCount "76"]
[EventDate "2022.09.29"]
[EventType "swiss"]
[SourceTitle "playchess.com"]
[Source "ChessBase"]
[SourceQuality "1"]
[TimeControl "5400+30"]

1. e4 {[%emt 0:00:02]} e5 {[%emt 0:00:09]} 2. Nf3 {[%emt 0:00:03]} Nc6 {[%emt 0:00:04]} 3. Bb5 {[%emt 0:00:17]} a6 {[%emt 0:00:05]} 4. Ba4 {[%emt 0:00:10]} Nf6 {[%emt 0:00:08]} 5. d3 {[%emt 0:02:46]} b5 {[%emt 0:01:10]} 6. Bb3 {[%emt 0:00:10]} Be7 {[%emt 0:00:44]} 7. O-O {[%emt 0:01:02]} O-O {[%emt 0:00:46]} 8. c3 {[%emt 0:01:25]} d6 {[%emt 0:08:47]} 9. h3 {[%emt 0:03:54]} Bb7 {[%emt 0:01:35]} 10. Re1 {[%emt 0:00:50]} Na5 {[%emt 0:00:14]} 11. Bc2 {[%emt 0:00:28]} c5 {[%emt 0:00:11]} 12. Nbd2 {[%emt 0:05:35]} Re8 {[%emt 0:06:22]} 13. Nf1 {[%emt 0:03:38]} Qc7 {[%emt 0:03:15]} 14. d4 {[%emt 0:03:11]} cxd4 {[%emt 0:13:44]} 15. cxd4 {[%emt 0:02:22]} exd4 {[%emt 0:09:31]} 16. Nxd4 {[%emt 0:02:48]} Bf8 {[%emt 0:05:48]} 17. Ng3 {[%emt 0:03:06]} Nc6 {[%emt 0:03:04]} 18. Nf3 {[%emt 0:06:09]} d5 {[%emt 0:07:34]} 19. Bg5 {[%emt 0:12:13]} Nxe4 {[%emt 0:03:34]} 20. Nxe4 {[%emt 0:03:30]} dxe4 {[%emt 0:33:45]} 21. Bxe4 {[%emt 0:02:39]} Bb4 {[%emt 0:00:00]} 22. Nd2 {[%emt 0:05:12]} h6 {[%emt 0:00:00]} 23. Bh4 {[%emt 0:07:31]} Qd6 {[%emt 0:00:00]} 24. Bxc6 {[%emt 0:10:24]} Rxe1+ {[%emt 0:00:00]} 25. Qxe1 {[%emt 0:00:58]} Bxd2 {[%emt 0:00:00]} 26. Bg3 {[%emt 0:01:10]} Qxc6 {[%emt 0:00:00]} 27. Qf1 {[%emt 0:01:19]} Re8 {[%emt 0:00:00]} 28. f3 {[%emt 0:01:00]} Qc2 {[%emt 0:00:00]} 29. b3 {[%emt 0:01:56]} f5 {[%emt 0:00:00]} 30. h4 {[%emt 0:02:20]} f4 {[%emt 0:00:00]} 31. Bf2 {[%emt 0:00:15]} Be3 {[%emt 0:00:00]} 32. b4 {[%emt 0:03:16]} Rd8 {[%emt 0:00:00]} 33. Bxe3 {[%emt 0:02:50]} fxe3 {[%emt 0:00:00]} 34. Re1 {[%emt 0:00:44]} Re8 {[%emt 0:00:00]} 35. Re2 {[%emt 0:00:13]} Qd3 {[%emt 0:00:00]} 36. g4 {[%emt 0:01:20]} Rf8 {[%emt 0:00:00]} 37. Qe1 {[%emt 0:01:31]} Rxf3 {[%emt 0:00:00]} 38. Kh2 {[%emt 0:02:00]} Qd6+ {[%emt 0:00:00]} 0-1